bitfinex-derivatives/quotes_SOLF0:USTF0_20250625
["timestamp","ask_amount","ask_price","bid_price","bid_amount"]
[1750871199767,42.24284004,143.62,143.57,6.9614]
[1750871200074,10.36123952,143.61,143.57,6.9614]
[1750871200274,17.32759737,143.6,143.57,6.9614]
[1750871200477,6.9601,143.6,143.57,6.9614]
[1750871200665,5.52100002,143.59,143.57,6.9614]
[1750871200967,5.52100002,143.58,143.57,6.9614]
[1750871201678,35.44,143.62,143.57,4.44974004]
[1750871201870,5.51536872,143.61,143.57,4.44974004]
[1750871202073,5.51536872,143.6,143.57,4.44974004]
[1750871202273,35.44,143.65,143.59,4.44974004]
[1750871202463,10.43158053,143.64,143.59,4.44974004]
[1750871202668,5.52755312,143.63,143.59,4.44974004]
[1750871202866,5.52758049,143.62,143.59,4.44974004]
[1750871203088,5.52758049,143.61,143.57,7.0165]
[1750871203283,4.90547525,143.66,143.6,4.44974004]
[1750871203582,5.52799543,143.65,143.62,4.44974004]
[1750871203893,5.52799543,143.64,143.63,6.9585]
[1750871204488,35.44,143.68,143.62,4.44974004]
[1750871204680,10.26593296,143.67,143.62,4.44974004]
[1750871204882,10.26593296,143.66,143.62,4.44974004]
[1750871205176,35.44,143.68,143.65,6.9572]
[1750871205374,10.30913964,143.67,143.62,4.44974004]
[1750871205578,5.40242047,143.66,143.64,6.9578]
[1750871205780,35.44,143.68,143.62,4.44974004]
[1750871205984,10.30689933,143.67,143.62,4.44974004]
[1750871206186,5.40085788,143.66,143.65,6.9572]
[1750871206580,5.39157398,143.66,143.64,6.9578]
[1750871206775,35.44,143.68,143.64,6.9578]
[1750871206979,17.3424079,143.67,143.64,6.9578]
[1750871207187,10.38507179,143.66,143.6,35.44]
[1750871207385,10.38507179,143.65,143.57,46.88624004]
[1750871207684,14.83481183,143.64,143.6,6.9596]
[1750871207884,10.38507179,143.63,143.6,6.9596]
[1750871208085,5.45388135,143.62,143.61,6.9595]
[1750871209393,11.40704004,143.66,143.59,4.44974004]
[1750871209394,4.44974004,143.66,143.59,4.44974004]
[1750871209691,10.41481043,143.65,143.59,4.44974004]
[1750871209883,10.41481043,143.64,143.62,6.9588]
[1750871210189,35.42,143.67,143.59,4.44974004]
[1750871210490,35.42,143.67,143.63,6.9582]
[1750871210491,17.3635701,143.66,143.63,6.9582]
[1750871210688,10.4063701,143.65,143.63,6.9582]
[1750871210891,5.44732832,143.64,143.63,6.9582]
[1750871211190,5.44740322,143.64,143.63,6.9582]
[1750871211384,12.40560322,143.64,143.58,4.44974004]
[1750871211686,12.40560322,143.64,143.57,42.4365]
[1750871211687,10.40556524,143.63,143.57,35.42]
[1750871211885,5.44740322,143.62,143.57,35.42]
[1750871212088,42.379,143.63,143.59,6.9601]
[1750871212287,5.44664505,143.62,143.57,35.42]
[1750871212480,35.42,143.63,143.57,35.42]
[1750871212481,5.44664505,143.61,143.57,35.42]
[1750871212681,42.3787,143.63,143.6,6.9596]
[1750871212885,5.44648849,143.62,143.57,35.42]
[1750871213084,5.44648849,143.61,143.59,6.9602]
[1750871213286,6.9594,143.62,143.59,6.9602]
[1750871213488,5.44648876,143.61,143.59,6.9602]
[1750871213791,6.9594,143.62,143.59,6.9602]
[1750871213987,5.44762128,143.61,143.59,6.9602]
[1750871214185,6.9594,143.62,143.59,6.9602]
[1750871214386,5.44762103,143.61,143.59,6.9602]
[1750871214692,6.9595,143.61,143.59,6.9602]
[1750871215191,6.9593,143.62,143.59,6.9602]
[1750871215387,5.44760867,143.61,143.57,35.42]
[1750871215592,9.89671628,143.6,143.54,39.86974004]
[1750871215792,6.9605,143.59,143.54,39.86974004]
[1750871215987,4.44974004,143.6,143.56,6.9619]
[1750871216289,4.44974004,143.6,143.54,39.86974004]
[1750871216492,5.4494928,143.59,143.54,39.86974004]
[1750871216686,4.44974004,143.6,143.57,6.9612]
[1750871216886,5.44923146,143.59,143.57,6.9612]
[1750871217089,11.41024004,143.6,143.57,6.9612]
[1750871218084,6.9605,143.59,143.57,6.9612]
[1750871218285,4.44974004,143.6,143.56,6.9617]
[1750871218485,4.44974004,143.6,143.54,35.42]
[1750871218693,37.8907,143.59,143.52,4.44974004]
[1750871218986,4.44974004,143.58,143.54,6.9629]
[1750871219382,6.9618,143.57,143.54,6.9629]
[1750871220090,6.9618,143.57,143.51,35.42]
[1750871220091,6.9618,143.57,143.55,6.9624]
[1750871220597,6.9618,143.57,143.51,35.42]
[1750871220791,6.9618,143.57,143.54,6.9625]
[1750871220992,37.8907,143.59,143.52,4.44974004]
[1750871221694,6.961,143.58,143.52,4.44974004]
[1750871222192,6.961,143.58,143.55,6.962]
[1750871222697,6.961,143.58,143.52,4.44974004]
[1750871223393,37.8907,143.59,143.52,4.44974004]
[1750871223803,6.9618,143.57,143.54,6.9626]
[1750871224695,6.9618,143.57,143.55,6.9624]
[1750871226192,6.9618,143.57,143.54,6.9627]
[1750871226803,4.44974004,143.56,143.51,35.42]
[1750871227208,4.44974004,143.56,143.49,2.4325]
[1750871227399,4.44974004,143.56,143.48,40.14974004]
[1750871228102,6.9632,143.54,143.52,6.9636]
[1750871228308,5.20416226,143.57,143.48,40.14974004]
[1750871228599,9.28574004,143.58,143.5,4.44974004]
[1750871228804,10.01030069,143.57,143.54,6.9628]
[1750871229005,9.28574004,143.58,143.54,6.9628]
[1750871229208,6.962,143.56,143.54,6.9628]
[1750871229899,6.962,143.56,143.5,4.44974004]
[1750871230410,6.962,143.56,143.54,6.9628]
[1750871230802,6.9624,143.55,143.5,4.44974004]
[1750871231106,4.44974004,143.54,143.46,40.14974004]
[1750871231301,4.44974004,143.54,143.46,35.7]
[1750871231500,6.9642,143.52,143.49,6.965]
[1750871232200,4.44974004,143.54,143.47,4.44974004]
[1750871232408,4.44974004,143.54,143.46,35.7]
[1750871232707,4.44974004,143.52,143.46,35.7]
[1750871232904,6.9651,143.5,143.46,35.7]
[1750871233110,35.7,143.51,143.45,9.20264004]
[1750871233503,35.7,143.51,143.45,4.7529]
[1750871233808,35.7,143.51,143.45,2.3758]
[1750871234108,35.7,143.51,143.47,6.966]
[1750871234610,6.9651,143.5,143.47,6.966]
[1750871235310,6.9654,143.49,143.47,6.966]
[1750871235604,14.44906772,143.5,143.42,35.7]
[1750871235806,4.44974004,143.48,143.42,35.7]
[1750871237100,6.9665,143.47,143.42,35.7]
[1750871237504,4.44974004,143.48,143.42,35.7]
[1750871237812,6.9664,143.47,143.45,6.967]
[1750871240113,11.41574004,143.48,143.45,6.967]
[1750871240314,11.41574004,143.48,143.46,6.9667]
[1750871240512,11.41574004,143.48,143.42,35.7]
[1750871240815,4.44974004,143.48,143.42,35.7]
[1750871241018,35.72,143.47,143.41,4.44974004]
[1750871241312,6.9668,143.46,143.44,6.9675]
[1750871242318,42.6866,143.47,143.44,6.9675]
[1750871242515,42.6866,143.47,143.45,6.9672]
[1750871243316,35.72,143.47,143.46,6.9668]
[1750871244415,40.16974004,143.5,143.47,6.9659]
[1750871244618,40.16974004,143.5,143.43,4.44974004]
[1750871245423,40.16974004,143.5,143.39,49.6599]
[1750871245424,6.9658,143.48,143.45,6.9672]
[1750871246218,4.44974004,143.48,143.41,4.44974004]
[1750871247319,4.44974004,143.48,143.45,6.967]
[1750871247624,4.44974004,143.48,143.41,4.44974004]
[1750871247919,11.41574004,143.48,143.46,6.9666]
[1750871248111,11.41574004,143.48,143.41,4.44974004]
[1750871248311,6.9664,143.47,143.45,6.967]
[1750871248927,6.9664,143.47,143.44,6.9675]
[1750871249616,4.44974004,143.48,143.43,6.968]
[1750871250121,6.9671,143.46,143.39,54.10964004]
[1750871250823,6.9665,143.47,143.41,4.44974004]
[1750871251220,6.9665,143.47,143.44,6.9675]
[1750871251727,11.41574004,143.48,143.41,4.44974004]
[1750871252021,35.68,143.49,143.41,4.44974004]
[1750871252221,35.68,143.49,143.43,4.44974004]
[1750871252424,35.68,143.49,143.47,6.966]
[1750871252718,42.6456,143.49,143.43,4.44974004]
[1750871253026,42.6456,143.49,143.46,6.9664]
[1750871254027,42.6456,143.49,143.47,6.9663]
[1750871257725,42.6456,143.49,143.43,4.44974004]
[1750871257726,6.9658,143.48,143.46,6.9665]
[1750871258831,4.44974004,143.48,143.41,4.44974004]
[1750871259228,4.44974004,143.48,143.39,35.72]
[1750871259229,4.44974004,143.48,143.39,40.16974004]
[1750871259426,4.44974004,143.46,143.39,40.16974004]
[1750871259626,4.44974004,143.46,143.43,6.968]
[1750871259627,6.9673,143.45,143.43,6.968]
[1750871260533,11.41674004,143.46,143.44,6.9678]
[1750871262732,6.9665,143.47,143.45,6.9673]
[1750871262931,35.68,143.51,143.45,4.44974004]
[1750871263832,6.9652,143.5,143.48,6.9658]
[1750871264636,6.9652,143.5,143.47,6.966]
[1750871265332,6.9652,143.5,143.48,6.9658]
[1750871265534,4.44974004,143.5,143.43,40.12974004]
[1750871265726,4.44974004,143.48,143.44,6.9673]
[1750871266124,6.9664,143.47,143.44,6.9673]
[1750871266436,35.68,143.47,143.44,6.9673]
[1750871267437,35.68,143.47,143.43,6.968]
[1750871268234,35.68,143.47,143.44,6.9677]
[1750871268434,35.68,143.47,143.4,40.12974004]
[1750871269136,35.68,143.47,143.43,6.9679]
[1750871269741,6.9672,143.46,143.43,6.9679]
[1750871270043,35.68,143.47,143.43,6.9679]
[1750871271047,4.44974004,143.46,143.43,6.9679]
[1750871271247,6.9675,143.45,143.42,6.9685]
[1750871271542,4.44974004,143.46,143.4,35.68]
[1750871272444,6.9675,143.45,143.43,6.9679]
[1750871272843,4.44974004,143.46,143.4,40.12974004]
[1750871273052,35.68,143.47,143.42,4.44974004]
[1750871273238,42.6465,143.47,143.45,6.967]
[1750871273439,35.68,143.47,143.42,4.44974004]
[1750871273937,42.6463,143.47,143.45,6.967]
[1750871277351,35.68,143.47,143.45,6.967]
[1750871278650,35.68,143.47,143.46,6.9668]
[1750871278855,35.68,143.5,143.44,4.44974004]
[1750871279244,9.55048434,143.49,143.46,6.9663]
[1750871279558,6.9656,143.49,143.46,6.9663]
[1750871280065,6.9656,143.49,143.44,4.44974004]
[1750871280066,6.9656,143.49,143.47,6.9662]
[1750871280353,9.55430869,143.48,143.45,6.9669]
[1750871280557,40.12974004,143.5,143.45,6.9669]
[1750871280754,6.9664,143.47,143.45,6.9669]
[1750871281761,6.9669,143.46,143.44,6.9675]
[1750871282058,4.44974004,143.48,143.42,4.44974004]
[1750871282250,6.9665,143.47,143.42,4.44974004]
[1750871283955,6.9665,143.47,143.44,6.9674]
[1750871286457,6.967,143.46,143.44,6.9674]
[1750871286961,4.44974004,143.46,143.42,6.9685]
[1750871287155,4.44974004,143.44,143.38,40.3559]
[1750871287355,40.04974004,143.44,143.38,40.3559]
[1750871287560,40.04974004,143.44,143.38,35.6]
[1750871287856,2.58654892,143.43,143.38,35.6]
[1750871288054,6.9691,143.42,143.39,6.9698]
[1750871288256,40.04974004,143.44,143.39,6.9698]
[1750871288457,2.58659628,143.43,143.39,6.9698]
[1750871288653,40.04974004,143.44,143.39,6.9698]
[1750871288654,6.9695,143.41,143.39,6.9698]
[1750871290066,35.6,143.44,143.37,6.9709]
[1750871290256,4.44974004,143.4,143.35,35.6]
[1750871290466,4.44974004,143.4,143.32,35.6]
[1750871290467,40.04974004,143.4,143.32,35.6]
[1750871290662,40.04974004,143.4,143.34,6.9721]
[1750871290663,6.9714,143.37,143.34,6.9721]
[1750871291559,4.44974004,143.38,143.33,6.9729]
[1750871291858,4.44974004,143.38,143.3,6.9344]
[1750871292067,6.9724,143.35,143.32,6.9733]
[1750871292669,6.9724,143.35,143.33,6.9731]
[1750871292869,42.5719,143.36,143.33,6.9731]
[1750871295768,6.9723,143.35,143.32,6.9734]
[1750871295969,6.9723,143.35,143.3,6.9344]
[1750871296269,6.9723,143.35,143.32,6.9733]
[1750871296775,6.9726,143.34,143.32,6.9733]
[1750871297466,40.04974004,143.36,143.31,6.9739]
[1750871297662,40.04974004,143.36,143.29,4.44974004]
[1750871297864,4.44974004,143.34,143.28,35.6]
[1750871298167,6.9743,143.31,143.28,6.9753]
[1750871298673,6.9746,143.3,143.27,6.9759]
[1750871298867,40.06974004,143.32,143.27,6.9759]
[1750871299074,4.44974004,143.3,143.26,6.9761]
[1750871299372,4.44974004,143.3,143.25,2.4639]
[1750871299566,6.9758,143.28,143.25,6.9768]
[1750871299766,4.44974004,143.3,143.23,4.44974004]
[1750871300373,4.44974004,143.3,143.25,6.9767]
[1750871300585,35.62,143.32,143.22,35.62]
[1750871300586,4.44974004,143.28,143.22,35.62]
[1750871300887,35.62,143.28,143.24,4.44974004]
[1750871301065,35.62,143.28,143.22,35.62]
[1750871301265,42.5958,143.28,143.25,6.9767]
[1750871301762,35.62,143.28,143.24,4.44974004]
[1750871302068,35.62,143.28,143.27,6.976]
[1750871302677,263.15964751,143.32,143.26,4.44974004]
[1750871302861,256.18574751,143.32,143.26,40.06974004]
[1750871303666,256.18574751,143.32,143.28,4.44974004]
[1750871303876,35.62,143.35,143.32,6.9733]
[1750871304281,35.62,143.35,143.28,4.44974004]
[1750871304979,6.9729,143.34,143.31,6.9738]
[1750871305370,6.9729,143.34,143.32,6.9736]
[1750871305571,42.5922,143.35,143.28,4.44974004]
[1750871305766,42.5922,143.35,143.3,4.44974004]
[1750871305981,35.62,143.35,143.3,4.44974004]
[1750871306370,35.62,143.35,143.34,6.9726]
[1750871306568,6.9717,143.36,143.34,6.9726]
[1750871306774,659.3714,143.37,143.34,6.9726]
[1750871307067,652.4,143.37,143.3,40.08974004]
[1750871307478,40.08974004,143.38,143.3,40.08974004]
[1750871307781,40.08974004,143.38,143.32,4.44974004]
[1750871307982,35.64,143.38,143.32,4.44974004]
[1750871308173,35.64,143.38,143.36,6.9714]
[1750871308481,35.64,143.38,143.34,4.44974004]
[1750871308879,11.41984004,143.4,143.36,6.9713]
[1750871309079,4.44974004,143.4,143.36,6.9713]
[1750871309283,6.9707,143.39,143.36,6.9713]
[1750871309680,37.9172,143.41,143.37,6.971]
[1750871310082,6.9702,143.39,143.36,6.9715]
[1750871311884,35.64,143.41,143.34,4.44974004]
[1750871312084,35.64,143.41,143.36,4.44974004]
[1750871312292,42.6095,143.41,143.38,6.9704]
[1750871314290,35.64,143.41,143.36,4.44974004]
[1750871314486,657.08974004,143.44,143.36,4.44974004]
[1750871314679,6.9688,143.42,143.39,6.97]
[1750871316987,6.9694,143.41,143.38,6.9703]
[1750871317188,35.74,143.43,143.38,6.9703]
[1750871317692,6.9693,143.41,143.38,6.9703]
[1750871319294,6.9689,143.42,143.39,6.9702]
[1750871319489,35.74,143.43,143.39,6.9702]
[1750871319793,6.9693,143.41,143.39,6.9702]
[1750871320691,6.969,143.42,143.39,6.9702]
[1750871321297,6.9693,143.41,143.38,6.9705]
[1750871321599,6.9693,143.41,143.36,4.44974004]
[1750871321800,42.7084,143.43,143.4,6.9694]
[1750871322000,42.7084,143.43,143.36,4.44974004]
[1750871322202,6.9684,143.43,143.38,4.44974004]
[1750871323201,6.9688,143.42,143.38,4.44974004]
[1750871324298,6.9688,143.42,143.39,6.9701]
[1750871324602,6.9688,143.42,143.36,4.44974004]
[1750871325001,6.9688,143.42,143.4,6.9697]
[1750871325397,6.9688,143.42,143.39,6.9701]
[1750871325601,6.9688,143.42,143.36,4.44974004]
[1750871327101,6.9688,143.42,143.39,6.9699]
[1750871327393,6.9688,143.42,143.36,4.44974004]
[1750871327994,6.9688,143.42,143.39,6.9698]
[1750871329998,42.7084,143.43,143.4,6.9697]
[1750871330201,35.74,143.43,143.4,6.9697]
[1750871331404,659.6082,143.44,143.4,6.9697]
[1750871331599,35.74,143.43,143.4,6.9697]
[1750871331801,42.7083,143.43,143.4,6.9697]
[1750871333305,35.74,143.43,143.4,6.9697]
[1750871333895,35.74,143.43,143.36,4.44974004]
[1750871334908,35.74,143.43,143.41,6.9692]
[1750871335708,659.6078,143.44,143.41,6.9692]
[1750871336007,831.3278,143.44,143.41,6.9692]
[1750871338211,6.9683,143.43,143.4,6.9695]
[1750871338411,824.36,143.44,143.36,4.44974004]
[1750871338910,171.7,143.43,143.4,6.9694]
[1750871339210,659.6082,143.44,143.4,6.9694]
[1750871339419,171.7,143.43,143.4,6.9694]
[1750871340112,171.7,143.43,143.41,6.9692]
[1750871340408,171.7,143.43,143.36,4.44974004]
[1750871340606,35.74,143.43,143.41,6.969]
[1750871340813,35.74,143.43,143.38,4.44974004]
[1750871341019,4.44974004,143.48,143.4,4.44974004]
[1750871341200,35.74,143.47,143.45,6.9671]
[1750871341506,35.74,143.47,143.42,4.44974004]
[1750871341507,35.74,143.5,143.44,4.44974004]
[1750871341713,35.74,143.5,143.48,6.9656]
[1750871342006,35.74,143.5,143.46,4.44974004]
[1750871342209,213.71769695,143.52,143.51,6.9644]
[1750871342504,687.84,143.56,143.5,4.44974004]
[1750871342708,35.52,143.56,143.5,4.44974004]
[1750871342912,35.52,143.56,143.54,6.9627]
[1750871343105,39.96974004,143.56,143.46,35.52]
[1750871343311,39.96974004,143.56,143.48,4.44974004]
[1750871343707,35.52,143.56,143.5,4.44974004]
[1750871344606,35.52,143.56,143.53,6.9631]
[1750871344912,39.96974004,143.56,143.48,4.44974004]
[1750871345213,39.96974004,143.56,143.51,6.9642]
[1750871345214,6.9627,143.55,143.51,6.9642]
[1750871345619,39.96974004,143.56,143.48,4.44974004]
[1750871345910,35.52,143.56,143.5,4.44974004]
[1750871346517,35.52,143.56,143.53,6.9632]
[1750871347216,35.52,143.56,143.5,4.44974004]
[1750871347425,39.96974004,143.56,143.5,4.44974004]
[1750871347612,4.44974004,143.54,143.43,4.879]
[1750871347915,2.2668,143.53,143.45,39.96974004]
[1750871348111,6.9643,143.52,143.47,6.9662]
[1750871348512,35.52,143.52,143.47,6.9662]
[1750871348713,6.965,143.5,143.46,6.9666]
[1750871349108,4.44974004,143.5,143.43,9.32874004]
[1750871349505,35.52,143.52,143.45,4.44974004]
[1750871349712,35.52,143.52,143.47,4.44974004]
[1750871349912,35.52,143.52,143.49,6.9653]
[1750871350510,42.484,143.52,143.47,4.44974004]
[1750871350705,35.52,143.52,143.47,4.44974004]
[1750871351210,35.52,143.52,143.49,6.9651]
[1750871353017,35.52,143.52,143.5,6.9648]
[1750871353522,42.43544004,143.55,143.47,4.44974004]
[1750871354017,37.9857,143.55,143.49,4.44974004]
[1750871354218,35.5,143.55,143.49,4.44974004]
[1750871355424,6.9625,143.55,143.51,6.964]
[1750871355723,6.9625,143.55,143.49,4.44974004]
[1750871355724,45.40076972,143.56,143.49,4.44974004]
[1750871355922,35.5,143.56,143.49,4.44974004]
[1750871356322,42.4623,143.56,143.52,6.9639]
[1750871356720,42.4623,143.56,143.49,4.44974004]
[1750871357525,42.4623,143.56,143.53,6.9634]
[1750871357731,6.9625,143.55,143.49,4.44974004]
[1750871358427,6.9625,143.55,143.51,6.9641]
[1750871359031,35.5,143.56,143.49,4.44974004]
[1750871359622,35.5,143.56,143.51,4.44974004]
[1750871360128,35.5,143.56,143.5,35.5]
[1750871360129,35.5,143.59,143.53,4.44974004]
[1750871360526,6.77994004,143.61,143.51,4.7041]
[1750871360527,2.3302,143.61,143.55,4.44974004]
[1750871360825,37.762,143.62,143.55,4.44974004]
[1750871361217,42.94528303,143.62,143.55,4.44974004]
[1750871361415,4.44974004,143.61,143.57,6.9614]
[1750871361619,4.44974004,143.61,143.55,4.44974004]
[1750871361831,11.40934004,143.61,143.58,6.9607]
[1750871362129,11.40934004,143.61,143.55,4.44974004]
[1750871362130,35.5,143.62,143.55,4.44974004]
[1750871362424,42.4593,143.62,143.58,6.9606]
[1750871362618,4.44974004,143.61,143.54,35.5]
[1750871363328,4.44974004,143.61,143.56,6.9617]
[1750871363724,6.9607,143.59,143.56,6.9617]
[1750871364430,6.9603,143.6,143.56,6.9617]
[1750871364624,4.44974004,143.59,143.55,6.9623]
[1750871364833,35.5,143.62,143.51,35.5]
[1750871364834,4.44974004,143.57,143.51,35.5]
[1750871365131,6.9623,143.56,143.53,6.9631]
[1750871365630,46.91134004,143.57,143.54,6.9628]
[1750871365836,39.94974004,143.57,143.49,4.44974004]
[1750871366525,39.94974004,143.57,143.54,6.9626]
[1750871366726,39.94974004,143.57,143.51,4.44974004]
[1750871366927,35.5,143.57,143.51,4.44974004]
[1750871367134,35.5,143.57,143.55,6.9621]
[1750871367319,35.5,143.57,143.51,4.44974004]
[1750871367633,4.44974004,143.59,143.53,4.44974004]
[1750871367931,35.5,143.6,143.53,4.44974004]
[1750871368133,35.5,143.6,143.57,6.9612]
[1750871368729,42.4601,143.6,143.57,6.9612]
[1750871370236,35.5,143.6,143.58,6.961]
[1750871370533,35.5,143.6,143.53,4.44974004]
[1750871371529,42.4603,143.6,143.57,6.9612]
[1750871372434,6.9615,143.57,143.54,6.9627]
[1750871372636,4.44974004,143.57,143.48,40.14974004]
[1750871372933,11.41244004,143.55,143.51,6.9641]
[1750871373139,4.44974004,143.55,143.51,6.9641]
[1750871373334,4.44974004,143.55,143.48,40.14974004]
[1750871373532,4.44974004,143.53,143.44,40.14974004]
[1750871374137,42.6643,143.52,143.48,6.9656]
[1750871374339,42.6643,143.52,143.44,40.14974004]
[1750871374542,42.6643,143.52,143.49,6.9654]
[1750871375337,35.7,143.52,143.46,4.44974004]
[1750871375735,35.7,143.52,143.44,35.7]
[1750871375736,40.14974004,143.55,143.48,4.44974004]
[1750871375936,47.11244004,143.55,143.48,40.14974004]
[1750871376843,40.14974004,143.55,143.48,40.14974004]
[1750871378747,40.14974004,143.55,143.53,6.9632]
[1750871379043,4.44974004,143.57,143.5,4.44974004]
[1750871379233,45.32859482,143.58,143.55,6.9622]
[1750871379433,49.42294004,143.59,143.55,6.9622]
[1750871379945,49.42294004,143.59,143.52,4.44974004]
[1750871379946,35.7,143.59,143.57,6.9612]
[1750871380746,35.7,143.59,143.58,6.961]
[1750871380942,35.7,143.59,143.52,40.14974004]
[1750871382141,40.14974004,143.59,143.52,35.7]
[1750871382647,6.9612,143.58,143.54,6.9629]
[1750871383045,6.9612,143.58,143.52,35.7]
[1750871383745,6.9616,143.57,143.54,6.9627]
[1750871384241,6.9622,143.56,143.53,6.9632]
[1750871384641,4.44974004,143.57,143.49,42.8051]
[1750871384838,9.56093022,143.56,143.53,6.963]
[1750871385043,4.44974004,143.57,143.49,42.8051]
[1750871385353,9.5620261,143.56,143.53,6.9632]
[1750871385642,6.9623,143.56,143.53,6.9632]
[1750871385944,11.41134004,143.57,143.54,6.9629]
[1750871386145,4.80635136,143.58,143.52,4.44974004]
[1750871386341,2.59912044,143.57,143.5,4.44974004]
[1750871386545,6.9616,143.57,143.54,6.9627]
[1750871387443,40.14974004,143.59,143.55,6.9625]
[1750871387650,2.600199,143.58,143.5,4.44974004]
[1750871387946,40.14974004,143.59,143.52,4.44974004]
[1750871388149,2.60040115,143.58,143.56,6.962]
[1750871388349,40.14974004,143.59,143.56,6.962]
[1750871388542,2.6003813,143.58,143.56,6.962]
[1750871388742,47.11064004,143.59,143.56,6.962]
[1750871388950,2.60050657,143.58,143.55,6.9623]
[1750871389147,40.14974004,143.59,143.55,6.9623]
[1750871389348,14.37046203,143.58,143.55,6.9623]
[1750871389648,6.9613,143.58,143.55,6.9623]
[1750871389954,40.14974004,143.59,143.5,4.44974004]
[1750871390144,4.44974004,143.57,143.5,4.44974004]
[1750871390346,7.91312202,143.56,143.5,4.44974004]
[1750871390538,4.44974004,143.57,143.5,4.44974004]
[1750871390539,11.41154004,143.57,143.54,6.9627]
[1750871390748,4.44974004,143.57,143.5,4.44974004]
[1750871390946,2.60057421,143.56,143.5,4.44974004]
[1750871391256,6.962,143.56,143.5,4.44974004]
[1750871391645,6.962,143.56,143.53,6.9631]
[1750871391846,11.41144004,143.57,143.5,4.44974004]
[1750871392546,6.9621,143.56,143.54,6.9627]
[1750871393350,11.41144004,143.57,143.54,6.9627]
[1750871393544,4.44974004,143.55,143.49,4.7109]
[1750871393746,11.41354004,143.53,143.45,42.6499]
[1750871394150,11.41354004,143.53,143.5,6.9649]
[1750871394443,6.964,143.52,143.45,42.6499]
[1750871395354,6.964,143.52,143.49,6.9651]
[1750871395551,11.41424004,143.51,143.45,40.3151]
[1750871395754,11.41424004,143.51,143.48,6.9656]
[1750871396450,11.41424004,143.51,143.49,6.9654]
[1750871396646,4.44974004,143.51,143.49,6.9654]
[1750871398264,4.44974004,143.51,143.5,6.9649]
[1750871398557,4.44974004,143.55,143.46,4.44974004]
[1750871398858,9.56012231,143.54,143.51,6.9642]
[1750871399059,6.963,143.54,143.51,6.9642]
[1750871399255,6.963,143.54,143.52,6.9639]
[1750871400867,6.9635,143.53,143.51,6.9642]
[1750871401057,11.41324004,143.53,143.51,6.9642]
[1750871401258,4.44974004,143.53,143.51,6.9642]
[1750871401463,4.44974004,143.55,143.46,20.68694004]
[1750871401667,4.44974004,143.55,143.48,4.44974004]
[1750871401969,4.44974004,143.55,143.53,6.9632]
[1750871402762,4.44974004,143.55,143.48,4.44974004]
[1750871403171,11.41224004,143.55,143.52,6.9635]
[1750871403466,40.14974004,143.56,143.48,4.44974004]
[1750871403763,7.85297452,143.55,143.48,4.44974004]
[1750871403969,44.91801304,143.56,143.54,6.9629]
[1750871404269,7.85386888,143.55,143.54,6.9629]
[1750871404469,40.14974004,143.56,143.54,6.9629]
[1750871404860,47.11194004,143.56,143.54,6.9629]
[1750871405061,35.7,143.56,143.5,4.44974004]
[1750871407772,35.7,143.56,143.54,6.9627]
[1750871409566,652.26,143.63,143.52,4.44974004]
[1750871409772,7.85917873,143.58,143.52,4.44974004]
[1750871409969,38.2763,143.59,143.52,4.44974004]
[1750871410175,7.85979936,143.58,143.56,6.9618]
[1750871410364,45.2371,143.59,143.52,4.44974004]
[1750871410563,7.86005801,143.58,143.52,4.44974004]
[1750871410768,45.2371,143.59,143.52,4.44974004]
[1750871410975,14.82053731,143.58,143.52,4.44974004]
[1750871411275,38.2763,143.59,143.52,4.44974004]
[1750871411569,38.2763,143.59,143.56,6.9617]
[1750871411774,2.59767857,143.58,143.56,6.9617]
[1750871411977,38.2763,143.59,143.55,6.9622]
[1750871412167,7.85903195,143.58,143.55,6.9622]
[1750871412473,45.2371,143.59,143.55,6.9622]
[1750871412769,2.59770862,143.58,143.56,6.962]
[1750871412972,45.2371,143.59,143.56,6.962]